Cogmind - Beta 17.1 @@@ ROGUE MODE // 2026.09.22 @ 04:36:49 Player: Somberlain Result: Destroyed by D-53 Grenadier with Mini Grenade Launcher Performance ------------- Evolutions (0) 0 Regions Visited (2) 400 Robots Destroyed (29) 145 Value Destroyed (618) 618 Prototype IDs (2) 40 Alien Tech Used (0) 0 Bonus (0) 0 TOTAL SCORE: 1203 Bonus ------- None Cogmind --------- Core Integrity 0/250 Matter 300/300 Energy 98/100 System Corruption 0% Temperature Cool (1) Movement Walking (190) Ox1 Location -10/Mines Parts ------- > --- POWER (1) -------- (None) > --- PROPULSION (2) --- Aluminum Leg > --- UTILITY (2) ------ Medium Storage Unit > --- WEAPON (2) ------- Makeshift Spear > --- INVENTORY (10) --- Improved Ion Engine Light Nuclear Core Medium Armor Plating Hacking Suite Small Laser Light Assault Rifle Peak State ------------ > --- POWER ------------ Improved Ion Engine > --- PROPULSION ------- Aluminum Leg Aluminum Leg > --- UTILITY ---------- Improved Heat Sink Medium Storage Unit > --- WEAPON ----------- Light Assault Rifle Makeshift Spear > --- INVENTORY -------- Improved Ion Engine Light Nuclear Core Medium Armor Plating Hacking Suite Small Laser Light Assault Rifle [Rating: 14] Favorites ----------- Power Improved Ion Engine Engine Improved Ion Engine Propulsion Light Treads Treads Light Treads Leg Aluminum Leg Utility Small Storage Unit Device Improved Heat Sink Storage Small Storage Unit Protection Medium Armor Plating Weapon Light Assault Rifle Energy Gun Small Laser Ballistic Gun Light Assault Rifle Piercing Weapon Makeshift Spear Build | -11 -10 -10 ------- Run | Yrd Mat Min Slots Evolved . | . . . Power . | . . . Propulsion . | . . . Utility . | . . . Weapon . | . . . Parts Attached 16 | 6 7 3 Power 2 | 1 1 . Engine 2 | 1 1 . Core . | . . . Reactor . | . . . Propulsion 4 | 2 . 2 Treads 2 | 2 . . Leg 2 | . . 2 Wheel . | . . . Hover . | . . . Flight . | . . . Utility 5 | 1 4 . Device 1 | . 1 . Storage 2 | 1 1 . Processor . | . . . Hackware . | . . . Protection 2 | . 2 . Artifact . | . . . Weapon 5 | 2 2 1 Energy Gun 2 | . 2 . Energy Cannon . | . . . Ballistic Gun 2 | 2 . . Ballistic Cannon . | . . . Launcher . | . . . Special Weapon . | . . . Impact Weapon . | . . . Slashing Weapon . | . . . Piercing Weapon 1 | . . 1 Special Melee Weapon . | . . . Unidentified Prototypes . | . . . Parts Lost 6 | . 1 5 Power 1 | . . 1 Propulsion 2 | . . 2 Utility 2 | . 1 1 Weapon 1 | . . 1 Highest Loss Streak 2 | . 1 2 To Critical Strikes . | . . . Average Backups 6 | 1 7 5 Power 1 | . 1 2 Propulsion 1 | 1 1 . Utility 1 | . 1 2 Weapon 1 | . 1 1 Tool/Special . | . . . Unused Backups 4 | . 1 3 Power 3 | . 1 2 Propulsion . | . . . Utility 1 | . . 1 Weapon . | . . . Tool/Special . | . . . Average Slot Usage (%) 94 | . 96 89 Engine 13 | . 14 13 Treads 18 | . 28 1 Leg 9 | . . 26 Device 4 | . 1 10 Storage 13 | . 12 14 Protection 6 | . 10 . Energy Gun 15 | . 18 9 Ballistic Gun 9 | . 9 9 Piercing Weapon 1 | . . 5 Peak Build Rating 14 | 6 12 14 Average Rating 10 | 4 10 10 On Entrance 6 | . 6 12 Avg Prop Armor Cover (%) 12 | . . 12 Naked Turns . | . . . Heaviest Build 28 | 12 28 21 Greatest Support 40 | 40 40 20 Greatest Overweight (x) 1 | . . 1 Average Overweight (x) . | . . . Largest Inventory Capacity 10 | 8 10 10 Average Capacity 8 | 6 8 10 Most Carried 9 | 3 9 8 Average Carried 6 | 1 7 5 Final Capacity 10 | 8 10 10 Final Carried 8 | 3 8 6 Class Distribution -------------------- 100% | Mutant Dominant Class ---------------- Mutant | -10/Materials Mutant | -10/Mines Resources | -11 -10 -10 ----------- Run | Yrd Mat Min Matter Collected 450 | 214 186 50 Remotely . | . . . Salvage Created 779 | . 662 117 Parts 59 | . 39 20 Haulers Intercepted 1 | . 1 . Recyclers Shooed . | . . . Parts Field Recycled . | . . . Retrieved Matter . | . . . Parts Self-Destructed . | . . . Prevented . | . . . Parts Restored . | . . . Kills | -11 -10 -10 ------- Run | Yrd Mat Min Combat Hostiles Destroyed 20 | . 15 5 Guns 20 | . 15 5 Classes Destroyed 8 | . 6 2 Worker 2 | . 2 . Builder 1 | . . 1 Tunneler 1 | . . 1 Hauler 1 | . 1 . Operator 2 | . 2 . Watcher 2 | . 2 . Swarmer 7 | . 2 5 Grunt 13 | . 13 . Best Kill Streak 4 | . 4 3 Combat Bots Only 3 | . 3 3 Max Kills in Single Turn 1 | . 1 1 Gunslinging . | . . . Exploded . | . . . Melee . | . . . Uniques/NPCs Destroyed . | . . . Combat | -11 -10 -10 -------- Run | Yrd Mat Min Hostile Shots Fired 104 | . 61 43 Missed 25 | . 14 11 Hits 79 | . 47 32 Projectile 79 | . 47 32 AOE 7 | . . 7 Critical Strikes 1 | . 1 . Part Disruptions 2 | . . 2 Damage Taken 1057 | . 557 500 Core 252 | . 99 153 Absorbed by Shields . | . . . Core Remaining (%) 100 | 100 . . Volleys Fired 72 | . 61 11 Largest 2 | . 2 2 Hottest 105 | . 105 105 Shots Fired 144 | . 122 22 Gun 144 | . 122 22 Cannon . | . . . Launcher . | . . . Special . | . . . Kinetic 40 | . 30 10 Thermal 104 | . 92 12 Explosive . | . . . Electromagnetic . | . . . Robot Hit Streak 13 | . 13 2 Robot Miss Streak 5 | . 5 3 Penetration Max . | . . . Secondary Targets 3 | . 2 1 Max Gunslinging Chain 1 | . 1 1 Shots Hit Robots 91 | . 80 11 Core Hits 48 | . 41 7 Critical Kills . | . . . Critical Parts Destroyed . | . . . Critical Strikes 5 | . 4 1 Burn 4 | . 4 . Impale 1 | . . 1 Melee Attacks 4 | . . 4 Impact . | . . . Slashing . | . . . Piercing 4 | . . 4 Sneak Attacks 2 | . . 2 Combat Hostiles . | . . . Follow-up Attacks . | . . . Damage Inflicted 1243 | . 1019 224 Guns 1117 | . 1019 98 Cannons . | . . . Explosions . | . . . Melee 126 | . . 126 Ramming . | . . . Kinetic 204 | . 155 49 Thermal 913 | . 864 49 Explosive . | . . . Electromagnetic . | . . . Impact . | . . . Slashing . | . . . Piercing 126 | . . 126 Highest Corruption . | . . . Average Corruption . | . . . Corruption Purged . | . . . Corruption Blocked . | . . . Overload Shots . | . . . Overflow Damage 32 | . . 32 Projectiles . | . . . Explosions . | . . . Melee 32 | . . 32 Knockbacks . | . . . Impact . | . . . Kinetic . | . . . Secondary . | . . . Self-Inflicted Damage . | . . . Shots . | . . . Rammed . | . . . Targets Rammed . | . . . Kicked . | . . . Crushed . | . . . Highest Temperature 348 | . 348 6 Average Temperature 110 | . 113 2 Received Heat Transfer 495 | . 315 180 Effects 4 | . 4 . Energy Bleed 2 | . 2 . Interference 1 | . 1 . Damage (minor) 1 | . 1 . Siege Activations . | . . . Martial Activations . | . . . Shielding Activations . | . . . Robots Disrupted . | . . . Combat Hostiles . | . . . Robots Corrupted . | . . . Combat Hostiles . | . . . Parts Fried . | . . . Impact Corruptions . | . . . Robots Melted . | . . . Combat Hostiles . | . . . Parts Melted 8 | . 7 1 Heat Transferred 2355 | . 2255 100 Parts Sabotaged . | . . . Parts Stolen . | . . . Parts Stripped . | . . . Power Chain Reactions . | . . . Alert | -11 -10 -10 ------- Run | Yrd Mat Min Maximum Alert Level . | . . . Low Security (%) 100 | 100 100 100 Level 1 . | . . . Level 2 . | . . . Level 3 . | . . . Level 4 . | . . . Level 5 . | . . . High Security . | . . . Max Security . | . . . Peak Influence 184 | . 184 95 Initial 65 | . . 65 Average 36 | . 41 32 Influence Increases 587 | . 451 136 Destroy 0b10 Robot/C 400 | . 300 100 Destroy 0b10 Robot/NC 45 | . 35 10 Destroy Leader 96 | . 76 20 Successful Hack 29 | . 23 6 Destroy Structure 2 | . 2 . Lose Combat Pursuer 15 | . 15 . Influence Decreases 587 | . 283 304 Entered New Map 103 | . . 103 Time Decay 449 | . 273 176 Lost Part 35 | . 10 25 Squads Dispatched 4 | . 4 . Investigation 2 | . 2 . Extermination . | . . . Reinforcement 2 | . 2 . Assault . | . . . Garrison . | . . . Intercept . | . . . Searches Triggered . | . . . Construction Impeded . | . . . Haulers Reinforced . | . . . Active Scanning Responses . | . . . Cargo Convoy Interrupts . | . . . Stealth | -11 -10 -10 --------- Run | Yrd Mat Min Distress Signals . | . . . Communications Jammed . | . . . Distress Signals . | . . . Times Spotted 38 | . 26 12 Peak Tracking Total 4 | . 4 3 Tactical Retreats 2 | . 1 1 Traps | -11 -10 -10 ------- Run | Yrd Mat Min Traps Triggered 2 | . 2 . Indirectly . | . . . Trap Hack Attempts . | . . . Triggered . | . . . Disarmed . | . . . Reprogrammed . | . . . Reused . | . . . Traps Extracted . | . . . Installed . | . . . Triggered . | . . . Machines | -11 -10 -10 ---------- Run | Yrd Mat Min Machines Disabled . | . . . Max in Single Turn . | . . . Machines Repaired . | . . . Machines Dismantled . | . . . Machines Sabotaged . | . . . Overloaded Fab Kills . | . . . Hacking | -11 -10 -10 --------- Run | Yrd Mat Min Machines Accessed 7 | . 6 1 Terminals 7 | . 6 1 Fabricators . | . . . Repair Stations . | . . . Recycling Units . | . . . Scanalyzers . | . . . Garrison Access . | . . . Total Hacks 23 | . 16 7 Successful 10 | . 9 1 Failed 13 | . 7 6 Catastrophic 2 | . 1 1 Database Lockouts . | . . . Manual 21 | . 14 7 Terminals 23 | . 16 7 Fabricators . | . . . Repair Stations . | . . . Recycling Units . | . . . Scanalyzers . | . . . Garrison Access . | . . . Terminal Hacks 6 | . 5 1 Robot Analysis 4 | . 4 . Prototype ID Bank 1 | . . 1 Terminal Index 1 | . 1 . Fabricator Hacks . | . . . Repair Station Hacks . | . . . Recycling Unit Hacks . | . . . Scanalyzer . | . . . Garrison Access Hacks . | . . . Unauthorized Hacks 4 | . 4 . Terminals 4 | . 4 . Botnet 4 | . 4 . Fabricators . | . . . Repair Stations . | . . . Recycling Units . | . . . Scanalyzers . | . . . Garrison Access . | . . . Data Cores Recovered . | . . . Used . | . . . Hacking Detections 7 | . 6 1 Full Trace Events 2 | . 1 1 Feedback Events . | . . . Feedback Blocked . | . . . Robot Schematics Acquired . | . . . Robots Built . | . . . Authchips . | . . . Time . | . . . Total Robot Build Rating . | . . . Part Schematics Acquired . | . . . Parts Built . | . . . Authchips . | . . . Time . | . . . Total Part Build Rating . | . . . Part Studies Acquired . | . . . Parts Repaired . | . . . Time . | . . . Parts Recycled . | . . . Recycled Matter . | . . . Retrieved Matter . | . . . Retrieved Components . | . . . Parts Scanalyzed . | . . . Part Schematics Acquired . | . . . Parts Damaged . | . . . Bothacking | -11 -10 -10 ------------ Run | Yrd Mat Min Used RIF Installer . | . . . Robots Hacked . | . . . Non-combat . | . . . Combat . | . . . Robot Hacks Applied . | . . . Relay Couplers Released . | . . . Fabnet Peak Effective % . | . . . Robots Rewired . | . . . Allies Hacked . | . . . Hacks Repelled . | . . . Allies | -11 -10 -10 -------- Run | Yrd Mat Min Total Allies . | . . . Largest Group . | . . . Highest-Rated Group . | . . . Highest-Rated Ally . | . . . Total Orders . | . . . Ally Attacks . | . . . Total Damage . | . . . Kills . | . . . Allies Corrupted . | . . . Allies Melted . | . . . Intel | -11 -10 -10 ------- Run | Yrd Mat Min Active Infowar (turns) . | . . . Robot Analysis Total 4 | . 4 . Derelict Logs Recovered . | . . . Drone Launches . | . . . Drone Recoveries . | . . . Exploration | -11 -10 -10 ------------- Run | Yrd Mat Min Turns Passed 1501 | 71 923 507 Spaces Moved 780 | 42 385 353 Core 6 | 6 . . Treads 421 | 36 385 . Legs 353 | . . 353 Wheels . | . . . Hover . | . . . Flight . | . . . Fastest Speed 50 | 50 160 120 Average Speed 145 | 144 160 129 Slowest Speed 190 | 160 160 190 Overloaded Moves . | . . . Propulsion Burnouts . | . . . Robots Hopped . | . . . Potential Cave-ins . | . . . Cave-ins Triggered . | . . . Exploration Rate (%) 44 | 3 68 61 Regions Visited 2 Branch Regions 1 Pre-discovered Areas . | . . . Known Exits Taken . | . . . Unknown Exits Taken 2 | 1 1 . Scrap Searched . | . . . Spaces Dug . | . . . Terrain Destroyed . | . . . Melee . | . . . Projectile . | . . . AOE . | . . . Terrain Rammed . | . . . Walls Destroyed . | . . . Machines Disabled . | . . . Actions | -11 -10 -10 --------- Run | Yrd Mat Min Total 1005 | 50 574 381 Wait 109 | . 103 6 Move 778 | 41 384 353 Hop . | . . . Pick Up 15 | 3 11 1 Fast Attach 8 | 6 2 . Attach 5 | . 2 3 Detach . | . . . Swap 8 | . 7 1 Drop 6 | . 4 2 Fire 72 | . 61 11 Melee 4 | . . 4 Ram . | . . . Kick . | . . . Crush . | . . . Escape Stasis . | . . . Rewire . | . . . Trap . | . . . Miscellaneous . | . . . Route ------- -11/Scrapyard -10/Materials (discovered 4 exits: [*Mat x2] / *Min / [*Sub]) -10/Mines (discovered 1 exit: [*Mat]) History --------- Turn | Location | Event 4 | -11/Scrapyard | Discovered new exit (range 16) 72 | -11/Scrapyard | Entered Materials 301 | -10/Materials | Build established: Mutant 484 | -10/Materials | Discovered new exit (range 16) 555 | -10/Materials | Discovered new exit (range 15) 651 | -10/Materials | Discovered new exit (range 11) 968 | -10/Materials | Discovered new exit (range 16) 995 | -10/Materials | Entered Mines 1024 | -10/Mines | Discovered new exit (range 14) 1291 | -10/Mines | A weapon hastily lodged in a ceiling crevice suddenly fell to the ground 1318 | -10/Mines | Assembled infested the area 1366 | -10/Mines | Core integrity fell below 50% 1495 | -10/Mines | Core integrity fell below 20% 1502 | -10/Mines | Destroyed by D-53 Grenadier with Mini Grenade Launcher Last Messages --------------- them where it hurts!" 01293_ Acquired Mak. Spear. 01318_ ALERT: Infestation in the mines, dispatching Demolisher response squad. 01344_ Dropped Lgt. Assault Rifle. 01356_ Sneak attack on U-05 Engineer. 01356_ U-05 Engineer destroyed. 01358_ Acquired 10 matter. 01365_ Imp. Heat Sink destroyed. 01388_ as-08308 suffers critical hit (Impale). 01388_ Destroyed Asb. F-torch. 01440_ Sneak attack on T-07 Excavator. 01440_ T-07 Excavator destroyed. 01475_ Pulverizer disabled. 01478_ Imp. Ion Engine destroyed. 01490_ Pressure Siphon disabled. 01492_ K-01 Serf collects debris. 01492_ Aluminum Leg destroyed. 01492_ K-01 Serf destroyed. 01502_ The unstable cave ceiling collapses. Map ----- +----------------------------------------------------+ | ???????### % = %!##???????????????? | | ??????## ] #???????????????? | | ??????# % |#???????????????? | | ??????# ## ##???????????????? | | ???##### ## ###????????????????? | | ??## #### ## #??????????????????? | | ??# ### ##=*#??????????????????? | | ??# # ==%##????#????????????? | | ???# [%[ #### ##???????????? | | ???## = #???????????? | | ????## *%= ##???????????? | | ????## ##????????????? | | ???## ##?????????????? | | ??## ##??????????????? | | ??# #???????????????? | | ??# #???????????????? | | ??# < #???????????????? | | ??## ### #???????????????? | | ???# ####?## ##???????????????? | | ???# ###?????## ##????????????????? | | ???# #???###### #?????????????????? | | ???# #???# #?????????????????? | | ???# #??##k######?????????????????? | | ???# #??# ###????????????####????? | | ???# #??# ###?####????# ##???? | | ???# #### @ #### ##### ##??? | | ???# #??? | | ???# " r | | ???###### " ##### ##??? | | ????????##### % ##??????????? | | ?????????????# #???????????? | | ?????????????# #???????????? | | ?????????????## d ##???????????? | | ?????????????## d #????????????? | | ????????????## ####????????????? | | ????????????# ##???????????????? | | ???????????## #?####???????????? | | ?????????### ### #???????????? | | ??????#### ### #???????????? | | ???# ## #### #????????????? | | ???# ## ## ####?????????? | | ???# ### ##????????? | | ???######### ######???? | | ??????# ???? | | ??????# "" ???? | | ??????# """" #####??????? | | ??????# """ #??????????? | | ??????# # ##?????????? | | ??????########## ##????????? | | ??????????????# ###??????? | +----------------------------------------------------+ Best States ------------- Heat Dissipation 39 Energy Generation 12 Energy Capacity 265 Matter Stores 300 Matter Capacity 300 Sight Range 16 Terrain Scan Density 10 Armor Coverage 450 Evasion (%) 55 Recoil Reduction 2 Item Schematics ----------------- None Robot Schematics ------------------ None Fabricated ------------ Nothing Repaired ---------- Nothing Studied --------- None Alien Tech Used ----------------- None Achievements -------------- None Challenges ------------ None Game ------ Seed CoreSapperInsulator Manual? 0 Play Time 00:11:02 Cumulative 152.7 hours Start 2026.09.22 @ 04:28:25 End 2026.09.22 @ 04:36:49 Sessions 1 Manual Loads 0 Difficulty Rogue Special Mode None Game No. 169 Rogue 169 Adventurer 0 Explorer 0 Win Type - Total 0 Types 0/0/0/0/0/0/0/0/0/0 Lore% 57 Gallery% 60 Achievement% 46 Wizard Run 0 Options --------- Layout 1 ASCII 0 Keyboard 0 Movement Mouse Keybinds 0 Fullscreen 2 Font 24/Smallcaps Map View 50x35 Zoom Use 0% Tactical HUD 1 Map Filters NONE Filters NONE Steam 1 RUN: 610bf01b-335e-4b26-b687-285005060375